Cogmind - Beta 16 @@@ ROGUE MODE // 2025.11.17 @ 13:15:44 Player: Librarian Ape Result: Destroyed by Y-45 Defender with Beam Rifle Performance ------------- Evolutions (1) 500 Regions Visited (2) 400 Robots Destroyed (45) 225 Value Destroyed (871) 871 Prototype IDs (2) 40 Alien Tech Used (0) 0 Bonus (0) 0 TOTAL SCORE: 2036 Bonus ------- None Cogmind --------- Core Integrity 0/400 Matter 300/300 Energy 280/280 System Corruption 0% Temperature Cool (29) Movement Core (600) Ox11 Location -9/Materials Parts ------- > --- POWER (1) -------- Heavy Ion Engine > --- PROPULSION (3) --- (None) > --- UTILITY (3) ------ Large Storage Unit System Shield > --- WEAPON (2) ------- Advanced Beam Cannon Hammer > --- INVENTORY (15) --- Reinforced Ion Engine Wheel Heat Sink Small Storage Unit Huge Storage Unit System Shield System Shield Advanced Beam Cannon Ion Cannon Assault Rifle Light Assault Rifle Grenade Launcher Peak State ------------ > --- POWER ------------ Heavy Ion Engine > --- PROPULSION ------- Armored Wheel Armored Wheel Armored Wheel > --- UTILITY ---------- Large Storage Unit Hacking Suite System Shield > --- WEAPON ----------- Advanced Beam Cannon Hammer > --- INVENTORY -------- Reinforced Ion Engine Wheel Heat Sink Small Storage Unit Huge Storage Unit System Shield System Shield Advanced Beam Cannon Ion Cannon Assault Rifle Light Assault Rifle Grenade Launcher [Rating: 22] Favorites ----------- Power Light Ion Engine Engine Light Ion Engine Propulsion Armored Wheel Treads Light Treads Wheel Armored Wheel Utility Large Storage Unit Device Improved Terrain Scanner Storage Large Storage Unit Hackware Hacking Suite Weapon Light Assault Rifle Energy Cannon Advanced Beam Cannon Ballistic Gun Light Assault Rifle Launcher Grenade Launcher Impact Weapon Hammer Build | -11 -10 -9 ------- Run | Yrd Mat Mat Slots Evolved 2 | . . 2 Power . | . . . Propulsion 1 | . . 1 Utility 1 | . . 1 Weapon . | . . . Parts Attached 34 | 7 9 18 Power 6 | 1 . 5 Engine 6 | 1 . 5 Core . | . . . Reactor . | . . . Propulsion 10 | 2 4 4 Treads 2 | . 2 . Leg . | . . . Wheel 8 | 2 2 4 Hover . | . . . Flight . | . . . Utility 9 | 2 3 4 Device 4 | 1 1 2 Storage 3 | 1 2 . Processor . | . . . Hackware 2 | . . 2 Protection . | . . . Artifact . | . . . Weapon 9 | 2 2 5 Energy Gun . | . . . Energy Cannon 4 | . . 4 Ballistic Gun 3 | 2 1 . Ballistic Cannon . | . . . Launcher 1 | . 1 . Special Weapon . | . . . Impact Weapon 1 | . . 1 Slashing Weapon . | . . . Piercing Weapon . | . . . Special Melee Weapon . | . . . Unidentified Prototypes 2 | . . 2 Parts Lost 8 | . 1 7 Power 2 | . . 2 Propulsion 3 | . . 3 Utility 2 | . 1 1 Weapon 1 | . . 1 Highest Loss Streak 4 | . 1 4 To Critical Strikes . | . . . Average Backups 10 | 3 9 13 Power . | . 1 . Propulsion 2 | 2 3 2 Utility 3 | . 2 5 Weapon 3 | . 2 4 Tool/Special . | . . . Unused Backups 8 | . . 8 Power . | . . . Propulsion . | . . . Utility 5 | . . 5 Weapon 3 | . . 3 Tool/Special . | . . . Average Slot Usage (%) 97 | . 99 95 Engine 11 | . 14 9 Treads 6 | . 11 . Wheel 23 | . 16 30 Device 9 | . 13 4 Storage 12 | . 14 11 Hackware 8 | . . 17 Energy Cannon 4 | . . 8 Ballistic Gun 15 | . 27 2 Launcher 2 | . . 3 Impact Weapon 3 | . . 6 Peak Build Rating 22 | 7 10 22 Average Rating 13 | 5 9 18 On Entrance 5 | . 7 10 Avg Prop Armor Cover (%) 9 | . . 9 Naked Turns . | . . . Heaviest Build 86 | 11 86 35 Greatest Support 40 | 26 40 40 Greatest Overweight (x) 11 | . 2 11 Average Overweight (x) . | . . . Largest Inventory Capacity 25 | 8 25 15 Average Capacity 12 | 7 11 15 Most Carried 15 | 6 14 15 Average Carried 10 | 3 9 13 Final Capacity 15 | 8 15 15 Final Carried 14 | 6 14 12 Class Distribution -------------------- 68% | Mutant 31% | Hacker-Mutant Dominant Class ---------------- Mutant | -10/Materials Hacker-Mutant | -9/Materials Resources | -11 -10 -9 ----------- Run | Yrd Mat Mat Matter Collected 911 | 286 62 563 Remotely . | . . . Salvage Created 1244 | 135 246 863 Parts 85 | 4 22 59 Haulers Intercepted 4 | . . 4 Recyclers Shooed 2 | . . 2 Parts Field Recycled . | . . . Retrieved Matter . | . . . Parts Self-Destructed . | . . . Prevented . | . . . Parts Restored . | . . . Kills | -11 -10 -9 ------- Run | Yrd Mat Mat Combat Hostiles Destroyed 32 | . 10 22 Melee 3 | . . 3 Guns 9 | . 7 2 Cannons 10 | . . 10 AOE 10 | . 3 7 Classes Destroyed 9 | 2 3 4 Tunneler 2 | 2 . . Hauler 4 | . . 4 Recycler 2 | 1 . 1 Operator 3 | . . 3 Watcher 2 | . 1 1 Swarmer 18 | . 6 12 Grunt 10 | . 4 6 Brawler 1 | . . 1 Sentry 3 | . . 3 Best Kill Streak 7 | 3 5 7 Combat Bots Only 5 | . 5 5 Max Kills in Single Turn 2 | 1 2 2 Gunslinging . | . . . Exploded 2 | . 2 2 Melee 1 | . . 1 Uniques/NPCs Destroyed . | . . . Combat | -11 -10 -9 -------- Run | Yrd Mat Mat Hostile Shots Fired 209 | . 44 165 Missed 51 | . 11 40 Hits 158 | . 33 125 Projectile 158 | . 33 125 Critical Strikes 3 | . 2 1 Damage Taken 1775 | . 339 1436 Core 484 | . 84 400 Absorbed by Shields . | . . . Core Remaining (%) 83 | 100 66 . Volleys Fired 108 | 8 39 61 Largest 2 | 2 2 2 Hottest 128 | 40 50 128 Shots Fired 173 | 16 78 79 Gun 103 | 16 74 13 Cannon 58 | . . 58 Launcher 12 | . 4 8 Special . | . . . Kinetic 103 | 16 74 13 Thermal 58 | . . 58 Explosive 12 | . 4 8 Electromagnetic . | . . . Robot Hit Streak 9 | 6 9 7 Robot Miss Streak 4 | 1 4 2 Penetration Max . | . . . Secondary Targets 1 | . 1 . Max Gunslinging Chain 1 | . 1 . Shots Hit Robots 110 | 13 38 59 Core Hits 58 | 6 17 35 Critical Kills . | . . . Critical Parts Destroyed . | . . . Critical Strikes . | . . . Melee Attacks 25 | . . 25 Impact 25 | . . 25 Slashing . | . . . Piercing . | . . . Sneak Attacks 2 | . . 2 Combat Hostiles . | . . . Follow-up Attacks . | . . . Damage Inflicted 2624 | 104 707 1813 Guns 607 | 104 439 64 Cannons 803 | . . 803 Explosions 825 | . 268 557 Melee 354 | . . 354 Ramming 35 | . . 35 Kinetic 607 | 104 439 64 Thermal 803 | . . 803 Explosive 825 | . 268 557 Electromagnetic . | . . . Impact 354 | . . 354 Slashing . | . . . Piercing . | . . . Highest Corruption . | . . . Average Corruption . | . . . Corruption Purged . | . . . Corruption Blocked . | . . . Overload Shots . | . . . Overflow Damage 83 | . 10 73 Projectiles 22 | . . 22 Explosions 37 | . 10 27 Melee 24 | . . 24 Knockbacks 1 | . . 1 Impact 1 | . . 1 Kinetic . | . . . Secondary . | . . . Self-Inflicted Damage 96 | . 14 82 Shots 3 | . 1 2 Rammed 7 | . . 7 Targets Rammed 7 | . . 7 Kicked . | . . . Crushed . | . . . Highest Temperature 561 | . 33 561 Average Temperature 122 | . 17 132 Received Heat Transfer 474 | . 129 345 Effects 13 | . . 13 Shutdowns 1 | . . 1 Interference 2 | . . 2 Matter Decay 1 | . . 1 Short Circuit 3 | . . 3 Damage (minor) 1 | . . 1 Damage (major) 4 | . . 4 Damage (core) 1 | . . 1 Siege Activations . | . . . Martial Activations . | . . . Shielding Activations . | . . . Robots Disrupted . | . . . Combat Hostiles . | . . . Robots Corrupted 3 | . . 3 Combat Hostiles . | . . . Parts Fried 2 | . . 2 Impact Corruptions 4 | . . 4 Robots Melted . | . . . Combat Hostiles . | . . . Parts Melted 1 | . . 1 Heat Transferred 1517 | . . 1517 Parts Sabotaged . | . . . Parts Stolen . | . . . Parts Stripped . | . . . Power Chain Reactions . | . . . Alert | -11 -10 -9 ------- Run | Yrd Mat Mat Maximum Alert Level 1 | . . 1 Low Security (%) 73 | 100 100 41 Level 1 26 | . . 58 Level 2 . | . . . Level 3 . | . . . Level 4 . | . . . Level 5 . | . . . High Security . | . . . Max Security . | . . . Peak Influence 336 | 10 128 336 Initial 37 | . . 37 Average 110 | 1 37 203 Influence Increases 1059 | 15 311 733 Destroy 0b10 Robot/C 640 | . 200 440 Destroy 0b10 Robot/NC 65 | 15 5 45 Destroy Leader 132 | . 42 90 Successful Hack 29 | . 21 8 Disable Machine 60 | . 15 45 Destroy Structure 103 | . 28 75 Partial Spotted 15 | . . 15 Lose Combat Pursuer 15 | . . 15 Influence Decreases 813 | 15 222 576 Entered New Map 52 | . . 52 Time Decay 531 | 15 222 294 Lost Part 70 | . . 70 Lost Ally 10 | . . 10 Purge Threat 150 | . . 150 Squads Dispatched 3 | . . 3 Investigation 1 | . . 1 Extermination . | . . . Reinforcement 2 | . . 2 Assault . | . . . Garrison . | . . . Intercept . | . . . Searches Triggered . | . . . Construction Impeded . | . . . Haulers Reinforced . | . . . Active Scanning Responses . | . . . Cargo Convoy Interrupts . | . . . Stealth | -11 -10 -9 --------- Run | Yrd Mat Mat Distress Signals 1 | . . 1 Communications Jammed . | . . . Distress Signals . | . . . Times Spotted 48 | . 17 31 Peak Tracking Total 5 | . 5 5 Tactical Retreats 1 | . . 1 Traps | -11 -10 -9 ------- Run | Yrd Mat Mat Traps Triggered 1 | . . 1 Indirectly . | . . . Trap Hack Attempts . | . . . Triggered . | . . . Disarmed . | . . . Reprogrammed . | . . . Reused . | . . . Traps Extracted . | . . . Installed . | . . . Triggered . | . . . Machines | -11 -10 -9 ---------- Run | Yrd Mat Mat Machines Disabled 4 | . 1 3 Max in Single Turn 2 | . 1 2 Machines Repaired . | . . . Machines Dismantled . | . . . Machines Sabotaged . | . . . Overloaded Fab Kills . | . . . Hacking | -11 -10 -9 --------- Run | Yrd Mat Mat Machines Accessed 10 | . 6 4 Terminals 9 | . 6 3 Fabricators . | . . . Repair Stations . | . . . Recycling Units . | . . . Scanalyzers 1 | . . 1 Garrison Access . | . . . Total Hacks 27 | . 15 12 Successful 19 | . 11 8 Failed 8 | . 4 4 Catastrophic . | . . . Database Lockouts . | . . . Manual 20 | . 13 7 Terminals 26 | . 15 11 Fabricators . | . . . Repair Stations . | . . . Recycling Units . | . . . Scanalyzers 1 | . . 1 Garrison Access . | . . . Terminal Hacks 6 | . 2 4 Terminal Index 1 | . 1 . Unreport Threat 1 | . . 1 Transport Status 1 | . . 1 Hauler Manifests 2 | . 1 1 Zone Layout 1 | . . 1 Fabricator Hacks . | . . . Repair Station Hacks . | . . . Recycling Unit Hacks . | . . . Scanalyzer 1 | . . 1 Retrieve Study 1 | . . 1 Garrison Access Hacks . | . . . Unauthorized Hacks 12 | . 9 3 Terminals 12 | . 9 3 Assimilate 1 | . 1 . Botnet 3 | . 1 2 Operators 1 | . 1 . Skim 7 | . 6 1 Fabricators . | . . . Repair Stations . | . . . Recycling Units . | . . . Scanalyzers . | . . . Garrison Access . | . . . Data Cores Recovered 2 | . . 2 Used . | . . . Hacking Detections 8 | . 6 2 Full Trace Events 1 | . 1 . Feedback Events . | . . . Feedback Blocked . | . . . Robot Schematics Acquired . | . . . Robots Built . | . . . Authchips . | . . . Time . | . . . Total Robot Build Rating . | . . . Part Schematics Acquired . | . . . Parts Built . | . . . Authchips . | . . . Time . | . . . Total Part Build Rating . | . . . Part Studies Acquired 1 | . . 1 Parts Repaired . | . . . Time . | . . . Parts Recycled . | . . . Recycled Matter . | . . . Retrieved Matter . | . . . Retrieved Components . | . . . Parts Scanalyzed . | . . . Part Schematics Acquired . | . . . Parts Damaged . | . . . Bothacking | -11 -10 -9 ------------ Run | Yrd Mat Mat Used RIF Installer . | . . . Robots Hacked . | . . . Non-combat . | . . . Combat . | . . . Robot Hacks Applied . | . . . Relay Couplers Released . | . . . Fabnet Peak Effective % . | . . . Robots Rewired . | . . . Allies Hacked . | . . . Hacks Repelled . | . . . Allies | -11 -10 -9 -------- Run | Yrd Mat Mat Total Allies 1 | . 1 . Largest Group 1 | . 1 1 Highest-Rated Group 10 | . 10 10 Highest-Rated Ally 10 | . 10 10 Total Orders . | . . . Ally Attacks . | . . . Total Damage . | . . . Kills . | . . . Allies Corrupted . | . . . Allies Melted . | . . . Intel | -11 -10 -9 ------- Run | Yrd Mat Mat Active Infowar (turns) 851 | 7 686 158 Terrain 716 | . 558 158 Seismic 159 | 7 128 24 Robot Analysis Total . | . . . Derelict Logs Recovered . | . . . Drone Launches . | . . . Drone Recoveries . | . . . Exploration | -11 -10 -9 ------------- Run | Yrd Mat Mat Turns Passed 1432 | 89 697 646 Spaces Moved 832 | 60 447 325 Core 10 | 9 . 1 Treads 132 | . 132 . Legs . | . . . Wheels 690 | 51 315 324 Hover . | . . . Flight . | . . . Fastest Speed 50 | 50 80 80 Average Speed 104 | 86 114 93 Slowest Speed 600 | 100 320 600 Overloaded Moves . | . . . Propulsion Burnouts . | . . . Robots Hopped . | . . . Potential Cave-ins . | . . . Cave-ins Triggered . | . . . Exploration Rate (%) 34 | 5 67 30 Regions Visited 2 Branch Regions . Pre-discovered Areas . | . . . Known Exits Taken . | . . . Unknown Exits Taken 2 | 1 1 . Scrap Searched . | . . . Spaces Dug 6 | . . 6 Terrain Destroyed 120 | . 32 88 Melee 6 | . . 6 Projectile . | . . . AOE 114 | . 32 82 Terrain Rammed . | . . . Walls Destroyed . | . . . Machines Disabled . | . . . Actions | -11 -10 -9 --------- Run | Yrd Mat Mat Total 1182 | 80 554 548 Wait 128 | . 46 82 Move 830 | 59 446 325 Hop . | . . . Pick Up 23 | 6 6 11 Fast Attach 12 | 7 . 5 Attach 4 | . 1 3 Detach . | . . . Swap 29 | . 16 13 Drop 16 | . . 16 Fire 108 | 8 39 61 Melee 25 | . . 25 Ram 7 | . . 7 Kick . | . . . Crush . | . . . Escape Stasis . | . . . Rewire . | . . . Trap . | . . . Miscellaneous . | . . . Route ------- -11/Scrapyard -10/Materials (discovered 4 exits: *Mat x3 / [*Min]) -9/Materials (discovered 2 exits: [*Mat] / [*Min]) History --------- Turn | Location | Event 8 | -11/Scrapyard | Discovered new exit (range 16) 90 | -11/Scrapyard | Entered Materials 182 | -10/Materials | Discovered new exit (range 15) 307 | -10/Materials | Build established: Mutant 335 | -10/Materials | Discovered new exit (range 15) 369 | -10/Materials | Discovered new exit (range 16) 645 | -10/Materials | Discovered new exit (range 14) 787 | -10/Materials | Entered another Materials area 787 | -9/Materials | Accompanied by 1 ally 787 | -9/Materials | Evolved 2 slots: Propulsion x1, Utility x1 1032 | -9/Materials | Discovered new exit (range 8) 1166 | -9/Materials | Discovered new exit (range 4) 1183 | -9/Materials | Core integrity fell below 50% 1269 | -9/Materials | Build established: Hacker-Mutant 1421 | -9/Materials | Core integrity fell below 20% 1433 | -9/Materials | Destroyed by Y-45 Defender with Beam Rifle Last Messages --------------- 01386_ S-10 Pest destroyed. 01394_ Triggered Alarm Trap. 01394_ An alarm sounds. 01394_ ALERT: Alarm triggered, dispatching investigation squad. 01398_ Connecting with Scanalyzer... >>Study(Arm. Wheel) Identified Arm. Wheel... Downloading performance data... Effective improvements: -10 time/move 01402_ O-16 Technician destroyed. 01406_ Arm. Wheel+ destroyed. 01409_ Destroyed Flight Unit. 01409_ U-05 Engineer lays Concrete. 01411_ Arm. Wheel+ destroyed. 01411_ S-10 Pest destroyed. 01414_ Acquired data core, extracted dynamic key. 01417_ Arm. Wheel+ destroyed. 01420_ Hacking Suite destroyed. 01427_ Y-45 Defender destroyed. Map ----- +----------------------------------------------------+ | | | | | | | | | | | | | | | | | | | | | ????????????????????????????????????????????? | | ????????????????????????????????????????????? | | ???????????????????####?????????????????????? | | ??????????????????? ?????????????????????? | | ??????????????????? ?????????????????????? | | ??????????????????? ?????????????????????? | | ??????????????????? ?????????????????????? | | ???????????????????# #?????????????????????? | | ???????????????????# #?????????????????????? | | ???????????????????# #?????????????????????? | | ??????????????????? #?????????????????????? | | ???????????????????# #?????????????????????? | | ???????????????????# #?????????????????????? | | ???????????????????#[ #?????????????????????? | | ???????????????????#=!#?????????????????????? | | ???????????????????#@[#?????????????????????? | | ???????????????????#*!########??????????????? | | ???????????????????#=*# ! #??????????????? | | ???????????????????# /# =#??????????????? | | ???????????????????#Y + "S #??????????????? | | ?????????????? """ + # """ #??????????????? | | ?????????????? """ #%[# "" #??????????????? | | ????????????? ## #! #??????????????? | | ???????????? ??# ########??????????????? | | ??????????#+#####???# #?????????????????????? | | ??????????# ????#####+######????????????????? | | ??????????# ????# %[# ?????????????????? | | ??????????# ????# """%# #?????????????????? | | ??????????# #???# """=# #?????????????????? | | ??????????# #???#[ """%+ #?????????????????? | | ????????### ###?# # #?????????????????? | | ????????# #?######### ##????????????????? | | ????????# ########## #????????????????? | | ????????+ = T #????????????????? | | ????????# [%[ ########## #????????????????? | | ????????# !* #????????#####????????????????? | | ????????## ##?????????????????????????????? | | ?????????# #??????????????????????????????? | | ?????????# #??????????????????????????????? | | ?????????#*! #??????????????????????????????? | +----------------------------------------------------+ Best States ------------- Heat Dissipation 38 Energy Generation 14 Energy Capacity 280 Matter Stores 300 Matter Capacity 300 Sight Range 16 Terrain Scan Range 16 Terrain Scan Density 10 Evasion (%) 50 Recoil Reduction 2 Offensive Hacking 10 Defensive Hacking 10 Item Schematics ----------------- None Robot Schematics ------------------ None Fabricated ------------ Nothing Repaired ---------- Nothing Studied --------- Arm. Wheel | -9/Materials | Hacked Alien Tech Used ----------------- None Achievements -------------- None Challenges ------------ None Game ------ Seed DeepHypercooledJetlance Manual? 0 Play Time 00:32:22 Cumulative 47.7 hours Start 2025.11.17 @ 12:43:42 End 2025.11.17 @ 13:15:44 Sessions 1 Manual Loads 0 Difficulty Rogue Special Mode None Game No. 70 Rogue 70 Adventurer 0 Explorer 0 Win Type - Total 1 Types 1/0/0/0/0/0/0/0/0/0 Lore% 37 Gallery% 30 Achievement% 28 Wizard Run 0 Options --------- Layout 0 ASCII 0 Keyboard 0 Movement Mouse Keybinds 0 Fullscreen 2 Font 24/Crisp Map View 76x50 Zoom Use 0% Tactical HUD 1 Map Filters NONE Filters NONE Steam 1 RUN: 6ef6cd27-9585-47fc-b44a-52e3db9a1fa1